fUST/lending_fUST_20250215
["ID","MTS","AMOUNT","RATE_DAILY","PERIOD"]
[353157697,1739615390608,718.19,8.845e-05,2]
[353157698,1739615391586,502.42,8.845e-05,2]
[353157699,1739615397352,1154.61,8.845e-05,2]
[353157700,1739615397535,500.0,8.845e-05,2]
[353157701,1739615399176,500.0,8.845e-05,2]
[353157702,1739615399428,500.0,8.845e-05,2]
[353157703,1739615402037,64798.06,8.845e-05,2]
[353157704,1739615402464,300.0,8.845e-05,2]
[353157705,1739615404833,1480.72,8.845e-05,2]
[353157717,1739615406363,562.7,8.845e-05,2]
[353157718,1739615406567,5333.82,8.845e-05,2]
[353157719,1739615410889,670.65,8.845e-05,2]
[353157720,1739615414120,3840.75,8.845e-05,2]
[353157721,1739615416895,500.0,8.845e-05,2]
[353157722,1739615417722,396.66082694,8.845e-05,2]
[353157723,1739615418974,2862.71,8.845e-05,2]
[353157724,1739615419805,500.0,8.845e-05,2]
[353157725,1739615426748,2447.23,8.845e-05,2]
[353157726,1739615427373,2389.98,8.845e-05,2]
[353157727,1739615427595,500.0,8.845e-05,2]
[353157728,1739615428790,500.0,8.845e-05,2]
[353157729,1739615429857,624.34,8.845e-05,2]
[353157734,1739615432171,-501.0446438,8.846e-05,2]
[353157735,1739615432180,-500.0,8.846e-05,2]
[353157736,1739615432190,-500.0,8.846e-05,2]
[353157737,1739615432199,-500.0,8.846e-05,2]
[353157738,1739615432209,-500.0,8.846e-05,2]
[353157739,1739615432218,-500.0,8.846e-05,2]
[353157740,1739615432227,-500.0,8.846e-05,2]
[353157741,1739615432236,-565.18,8.846e-05,2]
[353157742,1739615432245,-500.0,8.846e-05,2]
[353157743,1739615432254,-94.22558718,8.846e-05,2]
[353157744,1739615433301,500.0,8.845e-05,2]
[353157745,1739615435270,500.0,8.845e-05,2]
[353157746,1739615435922,500.0,8.845e-05,2]
[353157754,1739615438424,1300.65,8.845e-05,2]
[353157757,1739615440156,1000.0,0.00018,30]
[353157761,1739615440256,500.0,8.845e-05,2]
[353157872,1739615446651,1229.18,8.845e-05,2]
[353157882,1739615446884,2251.9,8.845e-05,2]
[353157924,1739615447280,500.0,8.845e-05,2]
[353158000,1739615448009,503.04310887,8.845e-05,2]
[353158076,1739615448765,990.71,8.845e-05,2]
[353158173,1739615450057,2369.97,8.845e-05,2]
[353158174,1739615454849,5000.0,8.845e-05,2]
[353158175,1739615456355,4052.64,8.845e-05,2]
[353158176,1739615457481,795.58,8.845e-05,2]
[353158177,1739615458073,3079.81,8.845e-05,2]
[353158178,1739615458944,624.23601706,8.845e-05,2]
[353158179,1739615462294,300.0,8.845e-05,2]
[353158180,1739615462696,2442.41,8.845e-05,2]
[353158181,1739615463288,5000.0,8.845e-05,2]
[353158182,1739615467743,500.0,8.845e-05,2]
[353158183,1739615472681,22095.22,8.845e-05,2]
[353158184,1739615473120,819.72,8.845e-05,2]
[353158185,1739615473623,500.0,8.845e-05,2]
[353158186,1739615479480,964.02,8.845e-05,2]
[353158187,1739615479770,636.16,8.845e-05,2]
[353158188,1739615481510,851.06,8.845e-05,2]
[353158189,1739615490102,2326.54,8.845e-05,2]
[353158190,1739615493812,662.56,8.845e-05,2]
[353158191,1739615501028,1038.59,8.845e-05,2]
[353158192,1739615503106,510.33052678,8.845e-05,2]
[353158193,1739615504994,824.03,8.845e-05,2]
[353158194,1739615505382,1090.12,8.845e-05,2]
[353158195,1739615509283,500.0,8.845e-05,2]
[353158196,1739615514897,2345.64,8.845e-05,2]
[353158197,1739615514947,500.0,8.845e-05,2]
[353158198,1739615515391,500.0,8.845e-05,2]
[353158199,1739615516182,9524.19,8.845e-05,2]
[353158200,1739615516707,1184.11,8.845e-05,2]
[353158201,1739615518442,500.0,8.845e-05,2]
[353158202,1739615519815,500.0,8.845e-05,2]
[353158206,1739615522370,300.0,8.845e-05,2]
[353158207,1739615522408,1604.64,8.845e-05,2]
[353158208,1739615523663,500.0,8.845e-05,2]
[353158209,1739615526478,500.0,8.845e-05,2]
[353158210,1739615531979,500.0,8.845e-05,2]
[353158211,1739615533976,870.09,8.845e-05,2]
[353158212,1739615534015,1223.15,8.845e-05,2]
[353158213,1739615538258,1388.25,8.845e-05,2]
[353158214,1739615540415,500.0,8.845e-05,2]
[353158215,1739615540866,3400.22,8.845e-05,2]
[353158217,1739615543752,2250.55,8.845e-05,2]
[353158218,1739615546468,500.0,8.845e-05,2]
[353158219,1739615546604,822.6,8.845e-05,2]
[353158220,1739615550311,4845.87,8.845e-05,2]
[353158221,1739615551225,220.88154303,8.845e-05,2]
[353158222,1739615553511,2385.24,8.845e-05,2]
[353158223,1739615554913,570.1,8.845e-05,2]
[353158224,1739615555139,500.0,8.845e-05,2]
[353158225,1739615559339,500.0,8.845e-05,2]
[353158226,1739615563407,500.0,8.845e-05,2]
[353158227,1739615566138,1890.83,8.845e-05,2]
[353158228,1739615568756,5787.85,8.845e-05,2]
[353158229,1739615569350,1169.07,8.845e-05,2]
[353158230,1739615569545,500.0,8.845e-05,2]
[353158231,1739615570467,500.0,8.845e-05,2]
[353158232,1739615573879,516.12,8.845e-05,2]
[353158233,1739615574817,500.0,8.845e-05,2]
[353158234,1739615574850,3059.23,8.845e-05,2]
[353158235,1739615582700,698.85,8.845e-05,2]
[353158236,1739615583508,300.0,8.845e-05,2]
[353158237,1739615586470,807.53,8.845e-05,2]
[353158238,1739615587592,1321.82,8.845e-05,2]
[353158239,1739615588229,864.46,8.845e-05,2]
[353158240,1739615590449,516.85,8.845e-05,2]
[353158241,1739615590559,500.0,8.845e-05,2]
[353158242,1739615591281,1951.89,8.845e-05,2]
[353158243,1739615595363,500.0,8.845e-05,2]
[353158244,1739615596826,25624.28,8.845e-05,2]
[353158245,1739615601618,2576.33,8.845e-05,2]
[353158246,1739615605716,500.0,8.845e-05,2]
[353158247,1739615609846,2509.94,8.845e-05,2]
[353158248,1739615610284,500.0,8.845e-05,2]
[353158249,1739615610662,1752.8,8.845e-05,2]
[353158250,1739615613417,3371.6,8.845e-05,2]
[353158251,1739615616319,642.71,8.845e-05,2]
[353158252,1739615617273,1909.95,8.845e-05,2]
[353158253,1739615618522,3549.53,8.845e-05,2]
[353158254,1739615620387,541.63,8.845e-05,2]
[353158255,1739615621702,927.13,8.845e-05,2]
[353158256,1739615624801,500.0,8.845e-05,2]
[353158257,1739615626178,1419.02,8.845e-05,2]
[353158258,1739615629031,6648.53,8.845e-05,2]
[353158259,1739615629808,500.0,8.845e-05,2]
[353158260,1739615631771,1231.18,8.845e-05,2]
[353158261,1739615632742,62098.14,8.845e-05,2]
[353158262,1739615632777,500.0,8.845e-05,2]
[353158263,1739615633179,1106.5,8.845e-05,2]
[353158264,1739615641405,500.0,8.845e-05,2]
[353158265,1739615642350,300.0,8.845e-05,2]
[353158266,1739615642419,500.0,8.845e-05,2]
[353158267,1739615644653,500.0,8.845e-05,2]
[353158268,1739615645280,3680.71,8.845e-05,2]
[353158269,1739615646129,758.72,8.845e-05,2]
[353158270,1739615647531,500.0,8.845e-05,2]
[353158271,1739615647642,500.0,8.845e-05,2]
[353158272,1739615648658,500.0,8.845e-05,2]
[353158273,1739615650095,500.0,8.845e-05,2]
[353158274,1739615651599,500.0,8.845e-05,2]
[353158275,1739615653770,500.0,8.845e-05,2]
[353158276,1739615655985,500.0,8.845e-05,2]
[353158277,1739615656119,715.26,8.845e-05,2]
[353158278,1739615656963,2345.26,8.845e-05,2]
[353158279,1739615658056,624.30808467,8.845e-05,2]
[353158280,1739615658779,500.0,8.845e-05,2]
[353158281,1739615661488,3883.78,8.845e-05,2]
[353158282,1739615664948,500.0,8.845e-05,2]
[353158283,1739615665252,912.5,8.845e-05,2]
[353158284,1739615665383,500.0,8.845e-05,2]
[353158285,1739615666524,500.0,8.845e-05,2]
[353158286,1739615666674,496.64703084,8.845e-05,2]
[353158287,1739615668763,1246.45,8.845e-05,2]
[353158288,1739615671146,1177.97,8.845e-05,2]
[353158289,1739615673711,5111.57,8.845e-05,2]
[353158290,1739615674955,500.0,8.845e-05,2]
[353158291,1739615677978,500.0,8.845e-05,2]
[353158292,1739615683931,501.86746198,8.845e-05,2]
[353158293,1739615685606,2743.43,8.845e-05,2]
[353158294,1739615685999,500.0,8.845e-05,2]
[353158295,1739615690440,500.0,8.845e-05,2]
[353158296,1739615691117,1328.69,8.845e-05,2]
[353158297,1739615694722,2290.4,8.845e-05,2]
[353158298,1739615695314,500.0,8.845e-05,2]
[353158299,1739615696737,500.0,8.845e-05,2]
[353158300,1739615697140,659.17,8.845e-05,2]
[353158301,1739615698303,500.0,8.845e-05,2]
[353158302,1739615700816,187.13212446,8.845e-05,2]
[353158303,1739615701211,609.65,8.845e-05,2]
[353158304,1739615701349,500.0,8.845e-05,2]
[353158305,1739615702546,300.0,8.845e-05,2]
[353158306,1739615703299,297.43375054,8.845e-05,2]
[353158307,1739615707172,1450.7,8.845e-05,2]
[353158308,1739615711150,949.43,8.845e-05,2]
[353158309,1739615713588,500.0,8.845e-05,2]
[353158310,1739615715042,21174.58,8.845e-05,2]
[353158311,1739615715542,2158.07,8.845e-05,2]
[353158312,1739615723014,500.0,8.845e-05,2]
[353158313,1739615724474,500.0,8.845e-05,2]
[353158314,1739615724569,1134.77,8.845e-05,2]
[353158315,1739615725409,519.29492575,8.845e-05,2]
[353158316,1739615725787,500.0,8.845e-05,2]
[353158317,1739615728711,500.0,8.845e-05,2]
[353158318,1739615729218,2951.48,8.845e-05,2]
[353158319,1739615731891,2229.6,8.845e-05,2]
[353158320,1739615736522,500.0,8.845e-05,2]
[353158321,1739615740477,500.0,8.845e-05,2]
[353158322,1739615740706,500.0,8.845e-05,2]
[353158323,1739615741167,500.0,8.845e-05,2]
[353158324,1739615741615,502.38982311,8.845e-05,2]
[353158325,1739615742580,9127.35,8.845e-05,2]
[353158326,1739615745645,785.57,8.845e-05,2]
[353158327,1739615746945,569.11,8.845e-05,2]
[353158328,1739615747947,3258.54,8.845e-05,2]
[353158329,1739615750599,437.50744271,8.845e-05,2]
[353158330,1739615752516,500.0,8.845e-05,2]
[353158331,1739615755920,500.0,8.845e-05,2]
[353158332,1739615758959,500.0,8.845e-05,2]
[353158333,1739615758997,857.28,8.845e-05,2]
[353158334,1739615759974,1689.54,8.845e-05,2]
[353158335,1739615762972,300.0,8.845e-05,2]
[353158336,1739615765183,634.95,8.845e-05,2]
[353158337,1739615766408,500.0,8.845e-05,2]
[353158338,1739615767659,500.0,8.845e-05,2]
[353158339,1739615769814,500.0,8.845e-05,2]
[353158340,1739615770001,500.0,8.845e-05,2]
[353158341,1739615772567,500.0,8.845e-05,2]
[353158342,1739615772992,500.0,8.845e-05,2]
[353158343,1739615773575,1812.05,8.845e-05,2]
[353158344,1739615774578,2300.45,8.845e-05,2]
[353158345,1739615774978,995.32,8.845e-05,2]
[353158346,1739615776536,4643.96,8.845e-05,2]
[353158347,1739615776756,1044.7,8.845e-05,2]
[353158348,1739615777193,1474.13,8.845e-05,2]
[353158349,1739615779605,1139.59,8.845e-05,2]
[353158350,1739615781993,500.0,8.845e-05,2]
[353158351,1739615782753,805.09,8.845e-05,2]
[353158352,1739615785173,500.0,8.845e-05,2]
[353158353,1739615786047,502.51983982,8.845e-05,2]
[353158354,1739615786484,2247.91,8.845e-05,2]
[353158355,1739615787743,500.0,8.845e-05,2]
[353158356,1739615789037,500.0,8.845e-05,2]
[353158357,1739615789339,669.73,8.845e-05,2]
[353158358,1739615789855,500.0,8.845e-05,2]
[353158359,1739615792099,500.0,8.845e-05,2]
[353158360,1739615792166,500.0,8.845e-05,2]
[353158361,1739615795558,1120.36,8.845e-05,2]
[353158362,1739615795743,223.14271853,8.845e-05,2]
[353158363,1739615798081,500.0,8.845e-05,2]
[353158364,1739615801002,500.0,8.845e-05,2]
[353158365,1739615801036,500.0,8.845e-05,2]
[353158366,1739615803101,500.0,8.845e-05,2]
[353158367,1739615803740,544.33,8.845e-05,2]
[353158368,1739615806924,1355.66,8.845e-05,2]
[353158369,1739615807086,2468.99,8.845e-05,2]
[353158370,1739615809219,500.0,8.845e-05,2]
[353158371,1739615813427,548.45,8.845e-05,2]
[353158372,1739615814864,2931.76,8.845e-05,2]
[353158373,1739615815228,500.0,8.845e-05,2]
[353158374,1739615815428,500.0,8.845e-05,2]
[353158375,1739615816759,2405.36,8.845e-05,2]
[353158376,1739615818271,1220.31,8.845e-05,2]
[353158377,1739615822676,300.0,8.845e-05,2]
[353158378,1739615825158,3401.63,8.845e-05,2]
[353158379,1739615829716,500.0,8.845e-05,2]
[353158380,1739615830737,500.0,8.845e-05,2]
[353158381,1739615832758,1870.56,8.845e-05,2]
[353158382,1739615833256,500.0,8.845e-05,2]
[353158383,1739615834050,6371.5,8.845e-05,2]
[353158384,1739615835854,1679.76,8.845e-05,2]
[353158385,1739615838088,500.0,8.845e-05,2]
[353158386,1739615838170,500.0,8.845e-05,2]
[353158387,1739615839114,661.77,8.845e-05,2]
[353158388,1739615845762,5546.69,8.845e-05,2]
[353158389,1739615848290,773.88,8.845e-05,2]
[353158390,1739615850335,500.0,8.845e-05,2]
[353158391,1739615854366,500.0,8.845e-05,2]
[353158392,1739615854799,500.0,8.845e-05,2]
[353158393,1739615855733,500.0,8.845e-05,2]
[353158394,1739615859385,500.0,8.845e-05,2]
[353158395,1739615861234,202.7358986,7.927e-05,2]
[353158396,1739615861474,500.0,8.845e-05,2]
[353158397,1739615862548,500.0,8.845e-05,2]
[353158398,1739615863193,615.93,8.845e-05,2]
[353158399,1739615863271,500.0,8.845e-05,2]
[353158400,1739615865552,500.0,8.845e-05,2]
[353158401,1739615868899,500.0,8.845e-05,2]
[353158402,1739615872760,293.27831945,8.845e-05,2]
[353158403,1739615874602,521.69619393,8.845e-05,2]
[353158404,1739615874683,1167.46,8.845e-05,2]
[353158405,1739615875356,586.45984286,8.845e-05,2]
[353158406,1739615877034,4898.59,8.845e-05,2]
[353158407,1739615877946,500.0,8.845e-05,2]
[353158408,1739615879485,24556.6,8.845e-05,2]
[353158409,1739615881417,500.0,8.845e-05,2]
[353158410,1739615882454,300.0,8.845e-05,2]
[353158411,1739615888760,2629.12,8.845e-05,2]
[353158412,1739615889622,1359.89,8.845e-05,2]
[353158413,1739615893566,1352.88,8.845e-05,2]
[353158414,1739615894556,839.1,8.845e-05,2]
[353158415,1739615896659,3231.12,8.845e-05,2]
[353158416,1739615897252,2194.97,8.845e-05,2]
[353158417,1739615899859,644.99,8.845e-05,2]
[353158418,1739615905270,500.0,8.845e-05,2]
[353158419,1739615908166,500.0,8.845e-05,2]
[353158420,1739615908292,500.0,8.845e-05,2]
[353158421,1739615909548,59510.71,8.845e-05,2]
[353158422,1739615909728,500.0,8.845e-05,2]
[353158423,1739615913578,1456.41,8.845e-05,2]
[353158424,1739615915581,500.0,8.845e-05,2]
[353158425,1739615917287,1060.4,8.845e-05,2]
[353158426,1739615918470,2068.15,8.845e-05,2]
[353158427,1739615919508,521.02533538,8.845e-05,2]
[353158428,1739615920461,500.0,8.845e-05,2]
[353158429,1739615922073,500.0,8.845e-05,2]
[353158430,1739615922232,3527.35,8.845e-05,2]
[353158431,1739615926048,500.0,8.845e-05,2]
[353158432,1739615926237,500.0,8.845e-05,2]
[353158433,1739615926602,500.0,8.845e-05,2]
[353158434,1739615930654,2828.5,8.845e-05,2]
[353158435,1739615934061,257.66772352,8.845e-05,2]
[353158436,1739615934487,500.0,8.845e-05,2]
[353158437,1739615934531,2247.54,8.845e-05,2]
[353158438,1739615936953,500.0,8.845e-05,2]
[353158439,1739615937366,697.91,8.845e-05,2]
[353158440,1739615939130,503.38368055,8.845e-05,2]
[353158441,1739615939487,909.87,8.845e-05,2]
[353158442,1739615941854,500.0,8.845e-05,2]
[353158443,1739615943089,801.03,8.845e-05,2]
[353158444,1739615943476,300.0,8.845e-05,2]
[353158445,1739615944164,540.77293757,8.845e-05,2]
[353158446,1739615945010,500.0,8.845e-05,2]
[353158447,1739615946290,752.84,8.845e-05,2]
[353158448,1739615946483,1194.52,8.845e-05,2]
[353158449,1739615954207,500.0,8.845e-05,2]
[353158450,1739615954576,1128.88,8.845e-05,2]
[353158451,1739615957431,1047.13,8.845e-05,2]
[353158452,1739615957839,500.0,8.845e-05,2]
[353158453,1739615960815,500.0,8.845e-05,2]
[353158454,1739615964180,500.0,8.845e-05,2]
[353158455,1739615964958,584.25,8.845e-05,2]
[353158456,1739615966294,608.5,8.845e-05,2]
[353158457,1739615971945,399.03926679,8.845e-05,2]
[353158458,1739615972713,1359.6,8.845e-05,2]
[353158459,1739615979269,191.77288019,8.845e-05,2]
[353158460,1739615979374,1001.17,8.845e-05,2]
[353158461,1739615982425,1087.49,8.845e-05,2]
[353158462,1739615983010,574.01028798,8.845e-05,2]
[353158463,1739615988751,2154.24,8.845e-05,2]
[353158464,1739615989647,688.26,8.845e-05,2]
[353158465,1739615992489,741.6,8.845e-05,2]
[353158466,1739615992686,758.59,8.845e-05,2]
[353158467,1739615998176,500.0,8.845e-05,2]
[353158468,1739615998843,500.0,8.845e-05,2]
[353158469,1739616002373,300.0,8.845e-05,2]
[353158470,1739616005878,539.26,8.845e-05,2]
[353158471,1739616006698,3122.77,8.845e-05,2]
[353158472,1739616007267,1299.17,8.845e-05,2]
[353158473,1739616007817,953.84,8.845e-05,2]
[353158474,1739616007922,8747.04,8.845e-05,2]
[353158475,1739616008675,20292.31,8.845e-05,2]
[353158476,1739616014853,500.0,8.845e-05,2]
[353158477,1739616016009,501.3932012,8.845e-05,2]
[353158478,1739616019482,2215.46,8.845e-05,2]
[353158479,1739616024889,500.0,8.845e-05,2]
[353158480,1739616026370,2136.7,8.845e-05,2]
[353158481,1739616028615,598.32,8.845e-05,2]
[353158482,1739616032884,1434.53,8.845e-05,2]
[353158483,1739616034125,500.0,8.845e-05,2]
[353158484,1739616034275,500.0,8.845e-05,2]
[353158485,1739616035903,429.9137985,8.845e-05,2]
[353158486,1739616036211,500.0,8.845e-05,2]
[353158487,1739616039319,500.0,8.845e-05,2]
[353158488,1739616039752,4450.46,8.845e-05,2]
[353158489,1739616040846,500.0,8.845e-05,2]
[353158490,1739616045965,500.0,8.845e-05,2]
[353158491,1739616047788,5315.58,8.845e-05,2]
[353158492,1739616048084,500.0,8.845e-05,2]
[353158493,1739616048129,641.83,8.845e-05,2]
[353158494,1739616048844,2271.22,8.845e-05,2]
[353158495,1739616053192,500.0,8.845e-05,2]
[353158496,1739616058779,500.0,8.845e-05,2]
[353158497,1739616058985,1073.68,8.845e-05,2]
[353158498,1739616061345,2340.65,8.845e-05,2]
[353158499,1739616062934,300.0,8.845e-05,2]
[353158500,1739616066430,500.0,8.845e-05,2]
[353158501,1739616069695,2366.11,8.845e-05,2]
[353158502,1739616075222,500.0,8.845e-05,2]
[353158503,1739616077945,2305.14,8.845e-05,2]
[353158504,1739616078987,500.0,8.845e-05,2]
[353158505,1739616079690,500.0,8.845e-05,2]
[353158506,1739616080548,500.0,8.845e-05,2]
[353158507,1739616081196,253.19069141,8.845e-05,2]
[353158508,1739616085045,2809.6,8.845e-05,2]
[353158509,1739616086044,923.86,8.845e-05,2]
[353158510,1739616086211,500.0,8.845e-05,2]
[353158511,1739616086316,3259.89,8.845e-05,2]
[353158512,1739616086845,500.0,8.845e-05,2]
[353158513,1739616087951,500.0,8.845e-05,2]
[353158514,1739616094187,500.0,8.845e-05,2]
[353158515,1739616094361,6106.03,8.845e-05,2]
[353158516,1739616094888,500.0,8.845e-05,2]
[353158517,1739616096191,1774.0,8.845e-05,2]
[353158518,1739616096538,500.0,8.845e-05,2]
[353158519,1739616101020,1539.78,8.845e-05,2]
[353158520,1739616104155,1792.62,8.845e-05,2]
[353158521,1739616104574,741.64,8.845e-05,2]
[353158522,1739616109350,1358.74,8.845e-05,2]
[353158523,1739616112175,500.0,8.845e-05,2]
[353158524,1739616114612,789.69,8.845e-05,2]
[353158525,1739616115118,57031.1,8.845e-05,2]
[353158526,1739616115497,500.0,8.845e-05,2]
[353158527,1739616117371,23533.41,8.845e-05,2]
[353158528,1739616119617,500.0,8.845e-05,2]
[353158529,1739616121648,500.0,8.845e-05,2]
[353158530,1739616122852,500.0,8.845e-05,2]
[353158531,1739616123074,300.0,8.845e-05,2]
[353158532,1739616124651,815.6,8.845e-05,2]
[353158533,1739616127281,500.0,8.845e-05,2]
[353158534,1739616127705,500.0,8.845e-05,2]
[353158535,1739616129118,3380.38,8.845e-05,2]
[353158536,1739616134220,590.26,8.845e-05,2]
[353158537,1739616135988,4694.48,8.845e-05,2]
[353158538,1739616137360,3096.49,8.845e-05,2]
[353158539,1739616140799,842.82,8.845e-05,2]
[353158540,1739616144545,1537.78,8.845e-05,2]
[353158541,1739616146598,1303.23,8.845e-05,2]
[353158542,1739616147704,500.0,8.845e-05,2]
[353158543,1739616148626,500.0,8.845e-05,2]
[353158544,1739616148942,2156.78,8.845e-05,2]
[353158545,1739616153493,1016.21,8.845e-05,2]
[353158546,1739616154805,1144.75,8.845e-05,2]
[353158547,1739616158487,500.0,8.845e-05,2]
[353158548,1739616159987,1330.4,8.845e-05,2]
[353158549,1739616162912,2519.57,8.845e-05,2]
[353158550,1739616163413,1081.85,8.845e-05,2]
[353158551,1739616168524,788.32,8.845e-05,2]
[353158552,1739616170244,500.0,8.845e-05,2]
[353158553,1739616171181,2103.51,8.845e-05,2]
[353158554,1739616178564,500.0,8.845e-05,2]
[353158555,1739616180535,500.0,8.845e-05,2]
[353158556,1739616183023,300.0,8.845e-05,2]
[353158557,1739616184211,500.0,8.845e-05,2]
[353158558,1739616185590,3661.27,8.845e-05,2]
[353158559,1739616190444,500.0,8.845e-05,2]
[353158560,1739616191909,500.0,8.845e-05,2]
[353158561,1739616194789,1266.75,8.845e-05,2]
[353158562,1739616195458,500.0,8.845e-05,2]
[353158563,1739616195638,1981.98,8.845e-05,2]
[353158564,1739616202760,500.0,8.845e-05,2]
[353158565,1739616208055,871.96,8.845e-05,2]
[353158566,1739616208220,2710.65,8.845e-05,2]
[353158567,1739616213112,500.0,8.845e-05,2]
[353158568,1739616213169,828.44,8.845e-05,2]
[353158569,1739616214828,833.84,8.845e-05,2]
[353158570,1739616220535,500.0,8.845e-05,2]
[353158571,1739616221142,500.0,8.845e-05,2]
[353158572,1739616225247,721.47,8.845e-05,2]
[353158573,1739616227786,500.0,8.845e-05,2]
[353158574,1739616228216,500.0,8.845e-05,2]
[353158575,1739616228971,559.9,8.845e-05,2]
[353158578,1739616233475,505.8583132,8.845e-05,2]
[353158579,1739616234258,710.7,8.845e-05,2]
[353158580,1739616239815,546.35,8.845e-05,2]
[353158581,1739616241289,500.0,8.845e-05,2]
[353158582,1739616244090,300.0,8.845e-05,2]
[353158583,1739616246085,583.14,8.845e-05,2]
[353158584,1739616248587,500.0,8.845e-05,2]
[353158585,1739616250110,500.0,8.845e-05,2]
[353158586,1739616254113,19446.79,8.845e-05,2]
[353158587,1739616255631,1042.18,8.845e-05,2]
[353158588,1739616256474,622.11,8.845e-05,2]
[353158589,1739616260097,959.46,8.845e-05,2]
[353158590,1739616261056,1179.88,8.845e-05,2]
[353158591,1739616264422,500.0,8.845e-05,2]
[353158592,1739616267445,914.1,8.845e-05,2]
[353158593,1739616268223,500.0,8.845e-05,2]
[353158594,1739616270048,2064.48,8.845e-05,2]
[353158595,1739616272080,623.2,8.845e-05,2]
[353158596,1739616272487,8382.58,8.845e-05,2]
[353158597,1739616277783,500.0,8.845e-05,2]
[353158598,1739616280136,2992.66,8.845e-05,2]
[353158599,1739616282184,888.5,8.845e-05,2]
[353158600,1739616288246,1245.04,8.845e-05,2]
[353158601,1739616289424,500.0,8.845e-05,2]
[353158602,1739616293941,844.27,8.845e-05,2]
[353158603,1739616295300,2123.15,8.845e-05,2]
[353158604,1739616295367,509.71899306,8.845e-05,2]
[353158605,1739616300746,500.0,8.845e-05,2]
[353158606,1739616301560,500.0,8.845e-05,2]
[353158607,1739616303860,500.0,8.845e-05,2]
[353158608,1739616304619,300.0,8.845e-05,2]
[353158609,1739616304655,500.0,8.845e-05,2]
[353158610,1739616304808,4265.03,8.845e-05,2]
[353158611,1739616309505,1676.77,8.845e-05,2]
[353158612,1739616310197,500.0,8.845e-05,2]
[353158613,1739616313621,500.0,8.845e-05,2]
[353158614,1739616317498,500.0,8.845e-05,2]
[353158615,1739616317543,500.0,8.845e-05,2]
[353158616,1739616322645,1028.94,8.845e-05,2]
[353158617,1739616325365,561.6,8.845e-05,2]
[353158618,1739616326939,500.0,8.845e-05,2]
[353158619,1739616328254,5094.09,8.845e-05,2]
[353158620,1739616328677,500.0,8.845e-05,2]
[353158621,1739616331214,874.47,8.845e-05,2]
[353158622,1739616334591,500.0,8.845e-05,2]
[353158623,1739616342431,2267.53,8.845e-05,2]
[353158624,1739616343379,500.0,8.845e-05,2]
[353158625,1739616348082,500.0,8.845e-05,2]
[353158626,1739616350321,2209.09,8.845e-05,2]
[353158627,1739616351438,399.44066117,8.845e-05,2]
[353158628,1739616351499,500.0,8.845e-05,2]
[353158629,1739616353695,500.0,8.845e-05,2]
[353158630,1739616357330,500.0,8.845e-05,2]
[353158631,1739616358246,3124.07,8.845e-05,2]
[353158632,1739616359638,500.0,8.845e-05,2]
[353158633,1739616359884,500.0,8.845e-05,2]
[353158634,1739616362967,300.0,8.845e-05,2]
[353158635,1739616363219,1545.61,8.845e-05,2]